{"text_format":"1","workbook":"xlsx","n_sheets":1,"sheets":["Лист1"],"not_rendered":{"charts":0,"images":0,"macros":1,"external_links":0,"defined_names":0,"comments":0,"pivot_tables":0},"unopened":[],"bounds":{"document_bytes":16777216,"sheet_cells":100000,"rows_first":2000,"rows_last":500,"rows_between":2000,"halvings":0,"cell_chars":16384,"cell_head_chars":4096},"cells_cut":0,"cells_raw":0,"read":"whole","date_system":"1900"}

{"sheet":"Лист1","index":0,"n_rows":50,"n_cols":6,"rows_kept":50,"cut":false,"hidden":false,"merged":[]}
[null,"формула от Pelena","формула от _Boroda_"]
[104,{"$f":"MROUND(A2,50)-1","v":99},{"$f":"TRUNC(A2-5,-1)+9","v":99},null,{"$f":"IF(A2,MROUND(A2,50)-1,\"\")","v":99},{"$f":"IF(A2,TRUNC(A2-5,-1)+9,\"\")","v":99}]
[946,949,949,null,{"$f":"IF(A3,MROUND(A3,50)-1,\"\")","v":949},{"$f":"IF(A3,TRUNC(A3-5,-1)+9,\"\")","v":949}]
[936,949,939,null,949,939]
[1001,999,999,null,999,999]
[1005,999,1009,null,999,1009]
[1008,999,1009,null,999,1009]
[105,99,109,null,99,109]
[1004,999,999,null,999,999]
[110,99,109,null,99,109]
[null,null,null,null,"",""]
[null,null,null,null,"",""]
[null,null,null,null,"",""]
[null,null,null,null,"",""]
[null,null,null,null,"",""]
[null,null,null,null,"",""]
[null,null,null,null,"",""]
[null,null,null,null,"",""]
[null,null,null,null,"",""]
[null,null,null,null,"",""]
[null,null,null,null,"",""]
[null,null,null,null,"",""]
[null,null,null,null,"",""]
[null,null,null,null,"",""]
[null,null,null,null,"",""]
[null,null,null,null,"",""]
[null,null,null,null,"",""]
[null,null,null,null,"",""]
[null,null,null,null,"",""]
[null,null,null,null,"",""]
[null,null,null,null,"",""]
[null,null,null,null,"",""]
[null,null,null,null,"",""]
[null,null,null,null,"",""]
[null,null,null,null,"",""]
[null,null,null,null,"",""]
[null,null,null,null,"",""]
[null,null,null,null,"",""]
[null,null,null,null,"",""]
[null,null,null,null,"",""]
[null,null,null,null,"",""]
[null,null,null,null,"",""]
[null,null,null,null,"",""]
[null,null,null,null,"",""]
[null,null,null,null,"",""]
[null,null,null,null,"",""]
[null,null,null,null,"",""]
[null,null,null,null,"",""]
[null,null,null,null,"",""]
[null,null,null,null,"",""]